[Event "57th Biel Festival MTO 2024"]
[White "Deuer,Marius"]
[Black "Jain Kashish Manoj"]
[Site "Biel"]
[Round "3.15"]
[Annotator "TA"]
[Result "1-0"]
[Date "2024.07.17"]
[WhiteElo "2435"]
[BlackElo "2308"]
[PlyCount "103"]
[TimeControl "60"]

{[%evp 9,103,20,9,13,41,42,37,47,35,6,10,4,54,56,64,45,70,63,61,41,60,62,67,57,55,28,36,50,34,22,97,66,114,114,112,106,105,110,125,118,137,116,172,165,180,227,228,222,183,192,187,172,168,159,170,172,181,116,186,183,180,120,156,79,95,92,77,82,85,50,43,16,27,26,23,25,29,40,31,32,56,11,543,557,602,600,593,589,566,513,462,463,535,525,538,536]} 1. d4 {[%emt 0:0:2]} d5 {[%emt 0:2:5]} 2. c4 {[%emt 0:0:6]} c6 {[%emt 0:0:17]} 3. Nf3 {[%emt 0:0:7]} Nf6 {[%emt 0:0:4]} 4. g3 {[%emt 0:0:6]} Bf5 {[%emt 0:0:38]} 5. Nc3 {[%emt 0:0:9]} e6 {[%emt 0:0:6]} 6. Nh4 {[%emt 0:0:5]} Be4 {[%emt 0:2:55]} 7. f3 {[%emt 0:0:16]} Bg6 {[%emt 0:0:8]} 8. Qb3 {[%emt 0:1:37] White is slightly better.} Qb6 {[%emt 0:1:37]} 9. c5 {[%emt 0:5:31]} Qxb3 {[%emt 0:0:14]} 10. axb3 {[%emt 0:0:5]} Be7 {[%emt 0:10:46]} (10... Bc2 $11 )11. Nxg6 $14 {[%emt 0:13:33]} hxg6 {[%emt 0:0:7]} 12. b4 {[%emt 0:4:29]} O-O {[%emt 0:3:39]} 13. e3 {[%emt 0:6:29]} a6 {[%emt 0:15:32]} 14. b5 {[%emt 0:3:30]} cxb5 {[%emt 0:0:10]} 15. Bxb5 {[%emt 0:0:53]} Nc6 {[%emt 0:0:33]} 16. Bxc6 {[%emt 0:4:15]} bxc6 {[%emt 0:0:2]} 17. Kd1 {[%emt 0:14:22]} g5 {[%emt 0:16:37][%cal Bg6g5,Bg5g4][%mdl 32]} 18. Kc2 {[%emt 0:3:31]} g4 {[%emt 0:2:18]} 19. f4 {[%emt 0:3:21]} Nd7 {[%emt 0:3:40]} (19... Kh7 $11 {keeps the balance.} )20. Bd2 $16 {[%emt 0:2:40]} f6 {[%emt 0:1:47]} (20... g5 $14 {deserves consideration.} )21. Na2 {[%emt 0:6:15]} Kf7 {[%emt 0:2:7]} 22. Nb4 {[%emt 0:5:46][%csl LRa6,LRc6]} Nb8 {[%emt 0:0:8]} 23. h3 {[%emt 0:1:41]} gxh3 {[%emt 0:0:8]} 24. Rxh3 {[%emt 0:0:6]} Ra7 {[%emt 0:5:19]} 25. Ra3 {[%emt 0:1:31] White is much more active.} Bd8 {[%emt 0:6:33]} (25... e5 $16 {keeps fighting.} 26. Rh1 (26. fxe5 fxe5 27. dxe5 Bxc5 $14 )exd4 )26. Rh1 $18 {[%emt 0:1:8]} a5 {[%emt 0:1:30]} 27. Nd3 {[%emt 0:0:8]} Ke7 {[%emt 0:6:33][%cal Bf7e7,Be7d7,Bd7c8][%mdl 32]} 28. Rha1 {[%emt 0:5:49]} Rh8 {[%emt 0:1:15]} 29. Bxa5 {[%emt 0:2:46]} Rb7 {[%emt 0:0:5]} 30. Be1 {[%emt 0:5:46]} Kd7 {[%emt 0:0:12]} 31. Ra7 {[%emt 0:0:47]} Kc8 {[%emt 0:0:7]} 32. Ra8 {[%emt 0:1:47]} Rh2+ {[%emt 0:4:35]} 33. Bf2 {[%emt 0:0:9]} ({Better is} 33. Kc3 $18 )Bc7 {[%emt 0:2:13]} (33... g5 $16 {was called for.} 34. Kc3 Rbh7 )34. Kc3 {[%emt 0:1:37]} e5 {[%emt 0:4:56]} 35. fxe5 {[%emt 0:6:49]} (35. Bg1 $18 Re2 36. fxe5 (36. dxe5 fxe5 37. fxe5 Rexb2 $16 )fxe5 37. dxe5 Rexb2 38. Nxb2 Bxe5+ 39. Kd3 Rxb2 40. R1a2 Rb3+ 41. Ke2 Bxg3 42. Kf3 )fxe5 $16 {[%emt 0:0:2]} 36. dxe5 {[%emt 0:0:12]} (36. Bg1 $142 Rg2 37. dxe5 (37. Nxe5 Rgxb2 38. R1a3 Bxe5 $15 )Rbxb2 38. Nxb2 Bxe5+ 39. Kd3 Rxb2 40. R1a2 Rb3+ 41. Ke2 Bxg3 42. Kf3 )Rxf2 {[%emt 0:2:42]} 37. Nxf2 {[%emt 0:0:6]} Bxe5+ {[%emt 0:0:4]} 38. Kd3 {[%emt 0:0:17] Threatens to win with Ng4.} Rxb2 {[%emt 0:0:22]} 39. Ng4 {[%emt 0:2:1]} Bxg3 {[%emt 0:0:29]} 40. R1a6 {[%emt 0:9:27][%cal Oa6a2]} Rb3+ {[%emt 0:6:17]} 41. Ke2 {[%emt 0:9:49][%cal Oa6a7]} Rb5 {[%emt 0:1:19]} 42. Ra5 {[%emt 0:3:1]} Rb4 {[%emt 0:5:8]} 43. Kf3 {[%emt 0:8:36]} Bc7 {[%emt 0:0:8]} 44. Ra1 {[%emt 0:0:55]} Rc4 {[%emt 0:4:20]} 45. R8a7 {[%emt 0:2:41] Hoping for Rh1.} Rxc5 $2 {[%emt 0:11:13][%mdl 8192] [#] This costs Black the game.} (45... Nd7 $1 $11 {and Black stays safe.} )46. Rh1 $1 $18 {[%emt 0:0:47] White is clearly winning.} d4 {[%emt 0:19:54]} 47. Rh8+ {[%emt 0:8:53]} Bd8 {[%emt 0:0:1]} 48. exd4 {[%emt 0:1:27]} Rd5 {[%emt 0:0:33]} 49. Ke4 {[%emt 0:3:44]} (49. Rxg7 Rxd4 50. Nh6 Rd7 51. Rxd7 Kxd7 $11 )Rd7 {[%emt 0:12:20]} 50. Rxd7 {[%emt 0:2:59]} Nxd7 {[%emt 0:0:29]} 51. Ne5 {[%emt 0:0:41]} Kc7 {[%emt 0:2:27] [#]} 52. Nxc6 $1 {[%emt 0:1:5][%mdl 512] Weighted Error Value: White=0.14 (very precise) /Black=0.30.  Loses game:     	---       	Black=1      Mistake:       	White=3     	Black=5      Inaccurate:     	White=5     	Black=1      OK:         	White=18    	Black=14     Best:        	White=4     	Black=5      Strong:       	White=1     	---        Brilliant:      	White=1     	---} 1-0

[Event "57th Biel Festival MTO 2024"]
[White "Shoshin,Kirill"]
[Black "Materia,Marco"]
[Site "Biel"]
[Round "3.16"]
[Annotator "TA"]
[Result "1/2-1/2"]
[Date "2024.07.17"]
[WhiteElo "2277"]
[BlackElo "2453"]
[PlyCount "103"]
[TimeControl "60"]

{[%evp 13,103,-30,-15,-18,-23,-20,-26,-21,-13,-15,-24,-25,8,0,7,0,0,0,0,1,18,21,12,16,14,8,16,14,17,18,13,14,70,8,7,9,9,12,12,8,4,11,9,14,7,9,8,0,6,6,1,0,0,0,0,0,0,0,0,0,0,0,0,0,0,0,0,0,0,0,0,0,0,0,0,0,0,0,0,0,0,0,0,0,0,0,0,0,0,0,0,0]} 1. d4 {[%emt 0:2:6]} Nf6 {[%emt 0:0:18]} 2. c4 {[%emt 0:0:6]} e6 {[%emt 0:0:3]} 3. Nc3 {[%emt 0:0:7]} Bb4 {[%emt 0:0:3]} 4. e3 {[%emt 0:0:21]} O-O {[%emt 0:0:5]} 5. a3 {[%emt 0:0:7]} Bxc3+ {[%emt 0:0:3]} 6. bxc3 {[%emt 0:0:3]} d6 {[%emt 0:0:6]} 7. Bd3 {[%emt 0:0:44]} e5 {[%emt 0:0:3]} 8. e4 {[%emt 0:0:9]} exd4 {[%emt 0:0:3]} 9. cxd4 {[%emt 0:0:6] [#]} Nxe4 $1 {[%emt 0:0:3]} 10. Ne2 {[%emt 0:0:8] Schwarz hat minimalen Vorteil.} Re8 {[%emt 0:0:3]} 11. O-O {[%emt 0:0:11]} d5 {[%emt 0:0:2]} 12. cxd5 {[%emt 0:0:7]} Nd7 {[%emt 0:34:29]} 13. Qc2 {[%emt 0:12:53]} Nef6 {[%emt 0:5:39][%cal Od7b6]} 14. Bg5 {[%emt 0:15:51][%cal Od3h7] Zielt auf Bxh7+! ab. Ein starkes Läuferpaar.} h6 {[%emt 0:3:53]} 15. Bh4 {[%emt 0:0:48]} Nb6 {[%emt 0:7:21]} 16. Nc3 {[%emt 0:1:49]} Nbxd5 {[%emt 0:23:47]} 17. Nxd5 {[%emt 0:1:49]} Qxd5 {[%emt 0:0:4]} 18. Bxf6 {[%emt 0:1:37]} gxf6 {[%emt 0:0:1]} 19. Qxc7 {[%emt 0:0:50]} Qxd4 {[%emt 0:5:22]} 20. Bc4 {[%emt 0:31:47]} Qd7 {[%emt 0:1:24]} 21. Qg3+ {[%emt 0:2:31]} Qg4 {[%emt 0:0:21]} 22. Qb3 {[%emt 0:6:45]} Re7 {[%emt 0:3:16]} (22... Be6 $1 $11 23. Bxe6 Rxe6 )23. Rae1 {[%emt 0:10:47]} (23. h3 $1 $14 Qf5 24. Qb4 )Be6 $11 {[%emt 0:0:53] Die Stellung ist ausgeglichen.} 24. Bxe6 {[%emt 0:1:47]} fxe6 {[%emt 0:0:1]} 25. h3 {[%emt 0:0:1]} Qf5 {[%emt 0:0:9]} 26. g4 {[%emt 0:0:53]} Qg6 {[%emt 0:6:58]} 27. Rxe6 {[%emt 0:0:6]} Qf7 {[%emt 0:0:3]} 28. Re3 {[%emt 0:0:44]} Qxb3 {[%emt 0:0:37]} 29. Rxb3 {[%emt 0:0:2][%mdl 4096] Endspiel. KRR-KRR} Rd8 {[%emt 0:0:26]} 30. Rc1 {[%emt 0:0:19]} Kf7 {[%emt 0:3:7]} 31. Kg2 {[%emt 0:0:6]} Rd5 {[%emt 0:1:59]} 32. Rc4 {[%emt 0:3:56]} h5 {[%emt 0:1:16]} 33. Kg3 {[%emt 0:0:16]} hxg4 {[%emt 0:0:31]} 34. hxg4 {[%emt 0:0:3]} Red7 {[%emt 0:1:58]} 35. f3 {[%emt 0:2:59]} Kg6 {[%emt 0:2:18]} 36. Kf4 {[%emt 0:1:24]} b6 {[%emt 0:4:18]} 37. Ke3 {[%emt 0:2:10]} f5 {[%emt 0:2:22]} 38. a4 {[%emt 0:1:29]} Re7+ {[%emt 0:0:58]} 39. Kf4 {[%emt 0:0:1]} fxg4 {[%emt 0:0:20]} 40. fxg4 {[%emt 0:1:23]} Rf7+ {[%emt 0:1:35]} 41. Kg3 {[%emt 0:53:10]} Rf1 {[%emt 0:12:45]} 42. Rc7 {[%emt 0:0:0]} Ra5 {[%emt 0:2:45]} 43. Rb4 {[%emt 0:0:0]} Rg1+ {[%emt 0:6:7]} 44. Kh4 {[%emt 0:0:0]} Rh1+ {[%emt 0:0:20]} 45. Kg3 {[%emt 0:0:0]} Kg5 {[%emt 0:2:23]} 46. Rg7+ {[%emt 0:0:0]} Kf6 {[%emt 0:0:7]} 47. Rc7 {[%emt 0:0:0]} Kg5 {[%emt 0:4:54]} 48. Rb5+ {[%emt 0:0:0]} Rxb5 {[%emt 0:0:5]} 49. axb5 {[%emt 0:0:0]} Rg1+ {[%emt 0:0:49]} 50. Kf3 {[%emt 0:0:0]} Ra1 {[%emt 0:0:30]} 51. Rg7+ {[%emt 0:0:0]} Kf6 {[%emt 0:0:5]} 52. Rc7 {[%emt 0:0:0] Gewichteter Fehlerwert: Weiß=0.04 (makellos) /Schwarz=0.05 (makellos) .  Fehler:       	Weiß=1     	Schwarz=1     Ungenau:       	---       	Schwarz=1     OK:         	Weiß=21    	Schwarz=22    Bester:       	---       	Schwarz=3} 1/2-1/2

[Event "57th Biel Festival MTO 2024"]
[White "Peycheva,Gergana"]
[Black "Holzke,Frank"]
[Site "Biel"]
[Round "3.17"]
[Annotator "TA"]
[Result "1/2-1/2"]
[Date "2024.07.17"]
[WhiteElo "2266"]
[BlackElo "2450"]
[PlyCount "135"]
[TimeControl "60"]

{[%evp 10,135,17,26,16,42,14,17,37,24,34,9,31,17,24,26,9,38,17,0,59,66,65,54,64,11,10,10,0,6,14,14,15,0,42,35,64,67,60,65,88,26,158,87,195,140,170,151,136,147,156,159,152,151,142,130,137,152,145,131,223,150,148,149,159,165,193,131,128,121,151,141,135,110,277,225,221,179,188,181,193,158,186,180,174,180,193,185,298,289,323,322,325,201,186,194,189,139,266,279,266,203,195,167,185,170,250,241,222,152,417,69,69,69,69,69,69,69,69,54,54,54,75,69,75,69,69,69]} 1. d4 {[%emt 0:1:45]} d5 {[%emt 0:5:3]} 2. c4 {[%emt 0:0:55]} c6 {[%emt 0:0:14]} 3. Nc3 {[%emt 0:1:19]} Nf6 {[%emt 0:0:52]} 4. e3 {[%emt 0:0:56]} Bf5 {[%emt 0:0:30]} 5. cxd5 {[%emt 0:1:58]} cxd5 {[%emt 0:0:44]} 6. Qb3 {[%emt 0:1:25]} Nc6 {[%emt 0:0:34]} 7. Qxb7 {[%emt 0:2:6]} Bd7 {[%emt 0:0:20]} 8. Qb3 {[%emt 0:1:39][%cal Og1f3]} Rb8 {[%emt 0:0:28] The position is equal.} 9. Qd1 {[%emt 0:1:34]} e5 {[%emt 0:0:26]} 10. dxe5 {[%emt 0:1:48]} Nxe5 {[%emt 0:0:36]} 11. Be2 {[%emt 0:2:17][%cal Og1f3]} (11. Nxd5 Nxd5 12. Qxd5 Bb4+ 13. Bd2 Bxd2+ 14. Qxd2 Qf6 $15 )Bd6 {[%emt 0:5:1]} 12. Nf3 {[%emt 0:2:41]} (12. Nxd5 $2 Nxd5 13. f4 (13. Qxd5 $2 Bc6 $19 )Qa5+ 14. Kf1 Ng6 $19 )Nxf3+ {[%emt 0:5:58]} 13. Bxf3 {[%emt 0:1:18][%cal Oe1g1]} Qc7 {[%emt 0:0:32]} 14. g3 {[%emt 0:2:32][%cal Oe1g1]} O-O {[%emt 0:2:20]} ({Black should play} 14... Bh3 $1 $11 )15. O-O $1 $14 {[%emt 0:2:10]} Bh3 {[%emt 0:2:21]} 16. Re1 {[%emt 0:5:29]} (16. Nxd5 Nxd5 17. Bxd5 Bxf1 18. Kxf1 g6 $17 )Rfd8 {[%emt 0:0:43]} 17. Qe2 {[%emt 0:10:58]} (17. Bxd5 Bc5 $15 )(17. Nxd5 Nxd5 18. Bxd5 (18. Qxd5 $2 Be5 $19 )Bb4 $19 )(17. Qd3 $14 )Be5 $11 {[%emt 0:22:4]} 18. Rd1 {[%emt 0:15:36]} Bxc3 {[%emt 0:0:46]} 19. bxc3 {[%emt 0:0:33]} Ne4 {[%emt 0:0:18]} (19... Qxc3 $5 20. Bd2 $8 Qb2 $17 )20. Bb2 {[%emt 0:8:39][%cal Oc3c4]} Qe5 {[%emt 0:7:32]} 21. Rd4 {[%emt 0:6:22] aiming for Rad1.} Ng5 {[%emt 0:4:7][%cal Ob8b2]} 22. Bh1 {[%emt 0:3:48]} Qf5 {[%emt 0:13:37][%cal Ob8b2] Strongly threatening ...Rxb2!} 23. f3 {[%emt 0:7:58]} h5 {[%emt 0:5:35]} 24. Rad1 {[%emt 0:3:24]} Qg6 {[%emt 0:3:49]} 25. c4 {[%emt 0:5:21]} (25. Rxd5 $2 Rxd5 26. Rxd5 Qb1+ 27. Rd1 Qxb2 (27... Rxb2 $2 28. Rxb1 Rxe2 29. f4 $19 )28. Qxb2 Rxb2 $19 )(25. Ba3 $16 )Qa6 {[%emt 0:1:0] [#]} (25... Qb6 $11 26. Ba1 (26. Rxd5 $2 Rxd5 27. cxd5 Qxb2 $19 )dxc4 )26. Bc3 {[%emt 0:4:23]} (26. Rxd5 $2 Rxd5 27. Rxd5 Qxa2 $19 )(26. R4d2 $142 $1 )Qa3 {[%emt 0:16:52]} (26... Ne6 $16 27. Rxd5 Rxd5 28. Rxd5 Rb1+ 29. Be1 Nf8 )27. R4d3 {[%emt 0:3:20]} (27. Rxd5 $2 Rxd5 28. cxd5 Qxc3 $19 )(27. Qd2 $18 )Qc5 {[%emt 0:1:26]} 28. Rxd5 {[%emt 0:3:0]} ({Don't do} 28. cxd5 $6 Bf5 $16 )Rxd5 {[%emt 0:0:16]} 29. Rxd5 {[%emt 0:0:18]} Rb1+ {[%emt 0:0:33]} 30. Kf2 {[%emt 0:2:43]} Be6 {[%emt 0:6:13]} 31. Rd8+ {[%emt 0:4:29]} (31. Rxc5 $2 {is a self mate.} Nh3+ 32. Kg2 Rg1# )Kh7 {[%emt 0:0:3] ( -> ...Nh3+)} 32. Bg2 {[%emt 0:0:9]} Qf5 {[%emt 0:3:27]} 33. Qd3 {[%emt 0:1:29] Prevents Ne4+.} Qxd3 {[%emt 0:0:35]} 34. Rxd3 {[%emt 0:0:3]} Bxc4 {[%emt 0:0:11]} (34... Nh3+ $16 {might work better.} 35. Bxh3 Bxh3 )35. Rd2 {[%emt 0:0:57]} Ne6 {[%emt 0:0:20]} 36. Bh3 {[%emt 0:1:35]} Kg6 {[%emt 0:1:23] Repels Bf5+} 37. e4 {[%emt 0:0:51]} Rc1 {[%emt 0:1:32] [#]} 38. Be5 {[%emt 0:0:35]} (38. Bb2 $1 $18 Rh1 39. Bg2 )f6 $16 {[%emt 0:0:31]} 39. Bb2 {[%emt 0:0:52]} Rh1 {[%emt 0:0:30]} 40. Kg2 {[%emt 0:0:42]} Re1 {[%emt 0:0:20]} 41. Bf5+ {[%emt 0:12:48]} Kh6 $2 {[%emt 0:4:32]} (41... Kf7 $16 )42. Rc2 {[%emt 0:6:41]} Bd3 {[%emt 0:1:31]} 43. Bc3 {[%emt 0:5:27]} Bxc2 {[%emt 0:6:30]} 44. Bxe1 $18 {[%emt 0:1:21][%mdl 4096] Endgame. KBB-KBN} Nd4 {[%emt 0:0:25]} 45. Bd2+ {[%emt 0:2:2]} g5 {[%emt 0:0:12]} 46. Bd7 {[%emt 0:5:55] Black must now prevent Bc3.} Bd1 {[%emt 0:3:47]} 47. Bc3 {[%emt 0:7:0]} Nxf3 {[%emt 0:1:48]} 48. Bxf6 {[%emt 0:0:34] Bc3 would now be deadly.} g4 {[%emt 0:2:33]} (48... Nd2 {was worth a try.} 49. Bd4 (49. e5 Kg6 $16 )a5 )49. Bf5 {[%emt 0:2:35]} Ne1+ {[%emt 0:11:40]} 50. Kf2 {[%emt 0:1:45]} Nf3 {[%emt 0:0:15]} 51. h4 {[%emt 0:2:54]} gxh3 {[%emt 0:0:21]} 52. Bxh3 {[%emt 0:0:27] This pair of bishops is nice.} Kg6 {[%emt 0:0:20]} 53. Bg2 {[%emt 0:3:0]} (53. Bc3 $18 )Nh2 {[%emt 0:5:35]} (53... Kxf6 $16 54. Bxf3 Bc2 )54. Bd4 {[%emt 0:0:37]} a6 {[%emt 0:2:34]} 55. a3 {[%emt 0:0:26]} Kg5 {[%emt 0:1:0]} 56. Be3+ {[%emt 0:2:14]} Kg4 {[%emt 0:0:37]} 57. Bc5 {[%emt 0:1:24]} Nf3 {[%emt 0:3:55]} (57... Bb3 $142 58. Bb6 Bd1 )58. Bd6 {[%emt 0:1:13]} Nd2 {[%emt 0:4:35]} 59. e5 {[%emt 0:0:32] Ke3 is the strong threat.} Bc2 $2 {[%emt 0:4:13]} (59... Bf3 $16 )60. e6 $2 {[%emt 0:0:56]} (60. Ke3 $18 Nb3 61. Bf3+ Kg5 62. e6 )Ne4+ $14 {[%emt 0:1:26]} 61. Bxe4 {[%emt 0:1:42]} Bxe4 {[%emt 0:0:11] KB-KB} 62. Ke3 {[%emt 0:0:29]} Kf5 {[%emt 0:6:31]} 63. Kd4 {[%emt 0:1:14]} Bc6 {[%emt 0:0:39]} 64. e7 {[%emt 0:1:13]} Ke6 {[%emt 0:0:28]} 65. Bb4 {[%emt 0:0:55]} Kd7 {[%emt 0:0:32]} 66. Kc5 {[%emt 0:0:47]} Bb5 {[%emt 0:0:18]} 67. Kb6 {[%emt 0:1:1]} Ke8 {[%emt 0:0:14]} 68. Ka5 {[%emt 0:0:17] Black defended with fortune.   Weighted Error Value: White=0.29 (precise) /Black=0.29 (precise) .  Loses game:     	---       	Black=2      Missed win:     	White=1     	---        Mistake:       	White=6     	Black=7      Inaccurate:     	White=3     	Black=2      OK:         	White=23    	Black=23     Best:        	White=2     	Black=10     Strong:       	White=1     	---} 1/2-1/2

[Event "57th Biel Festival MTO 2024"]
[White "Razafindratsima,Timothe"]
[Black "Toktomushev,Teimur"]
[Site "Biel"]
[Round "3.18"]
[Annotator "TA"]
[Result "1-0"]
[Date "2024.07.17"]
[WhiteElo "2445"]
[BlackElo "2300"]
[PlyCount "70"]
[TimeControl "60"]

{[%evp 10,70,20,17,31,4,23,23,24,27,83,73,87,44,58,48,47,45,55,33,35,28,39,13,50,56,193,200,198,200,185,155,165,154,221,187,207,167,227,194,264,219,418,415,447,440,411,416,1001,999,983,979,943,873,1301,1198,29973,29973,29979,29980,29989,29990,29991]} 1. e4 {[%emt 0:0:1]} c5 {[%emt 0:8:32]} 2. Nf3 {[%emt 0:0:9]} e6 {[%emt 0:0:9]} 3. d4 {[%emt 0:0:5]} cxd4 {[%emt 0:0:9]} 4. Nxd4 {[%emt 0:0:4]} a6 {[%emt 0:0:12]} 5. Be2 {[%emt 0:0:9]} Nf6 {[%emt 0:16:29]} 6. Qd3 {[%emt 0:0:1]} Nc6 {[%emt 0:2:23]} 7. O-O {[%emt 0:0:19]} Qc7 {[%emt 0:4:59]} (7... Nxd4 {is more complex.} 8. Qxd4 Qc7 9. Rd1 Bc5 )8. Nxc6 {[%emt 0:0:15]} bxc6 {[%emt 0:14:2] White has an edge.} 9. c4 {[%emt 0:0:15]} e5 {[%emt 0:4:16]} (9... d5 $11 {remains equal.} )10. Nc3 $16 {[%emt 0:2:40]} Be7 {[%emt 0:7:26]} 11. Kh1 {[%emt 0:5:36]} O-O {[%emt 0:9:46]} 12. f4 {[%emt 0:26:30]} d6 {[%emt 0:3:50]} 13. Qg3 {[%emt 0:0:18]} Kh8 {[%emt 0:8:39]} 14. Be3 {[%emt 0:0:35]} exf4 {[%emt 0:8:18]} 15. Bxf4 {[%emt 0:0:29] aiming for c5.} Nd7 {[%emt 0:1:39]} 16. c5 {[%emt 0:26:0]} Ne5 {[%emt 0:12:4]} 17. Rac1 {[%emt 0:1:20]} Be6 {[%emt 0:2:27] [#] Prevents Nd5. A mistake that costs the game.} (17... f6 $14 )18. Nd5 $1 $18 {[%emt 0:16:19][%mdl 512]} Bxd5 {[%emt 0:1:12]} 19. exd5 $40 {[%emt 0:1:16][%mdl 128] Strongly threatening cxd6. Black is in trouble.} f6 {[%emt 0:0:45]} 20. cxd6 {[%emt 0:0:31]} Bxd6 {[%emt 0:0:15]} 21. dxc6 {[%emt 0:0:10]} Rab8 {[%emt 0:2:1]} (21... g5 $16 )22. Qc3 {[%emt 0:17:9]} (22. Bxa6 Rxb2 23. a4 Rb4 )Rb6 {[%emt 0:1:5]} 23. Bf3 {[%emt 0:0:1][%cal Be2f3,Bf3e4,Be4d3,Bd3f5][%mdl 32]} Rb5 {[%emt 0:0:50]} (23... Rb4 {keeps fighting.} )24. Rcd1 {[%emt 0:3:14]} h6 {[%emt 0:0:28]} (24... Qe7 $142 25. Be4 g6 )25. b3 {[%emt 0:3:1]} Rc8 $2 {[%emt 0:0:19]} (25... Rd8 26. Be4 Qe7 )26. Be4 {[%emt 0:1:1]} Nf7 {[%emt 0:0:44] Black is weak on the light squares} 27. Qg3 {[%emt 0:2:24]} (27. Bxd6 Nxd6 28. Bb1 (28. Bd5 a5 $18 )Re5 $18 )Bxf4 {[%emt 0:0:12] [#]} 28. Qg6 {[%emt 0:1:4]} ({Less strong is} 28. Qxf4 Qxf4 29. Rxf4 Rbb8 $18 )(28. Rxf4 Re5 $18 )Ng5 {[%emt 0:0:22] Inhibits Qh7+.} ({Inferior is} 28... Bxh2 29. Qh7# )(28... f5 $142 )29. Rd7 {[%emt 0:0:6][%csl Gd7][%cal Rg6g7]} Rg8 {[%emt 0:0:43]} 30. Rxc7 {[%emt 0:1:13]} ({Not} 30. Bd5 $2 Rxd5 31. Rxd5 Qxc6 $19 )Bxc7 {[%emt 0:0:5]} 31. Bd3 {[%emt 0:0:13][%cal Oh2h4] And now h4! would win.} Rb4 {[%emt 0:0:14]} 32. g3 {[%emt 0:0:29]} Rd8 {[%emt 0:1:1]} 33. Re1 {[%emt 0:0:45] White mates.} Be5 {[%emt 0:0:49]} 34. c7 {[%emt 0:0:20][%cal Rc7d8]} Rc8 {[%emt 0:0:18]} 35. Bf5 {[%emt 0:0:15]} Ra8 {[%emt 0:0:50] Weighted Error Value: White=0.10 (very precise) /Black=0.56.  Mistake:       	---       	Black=7      Inaccurate:     	White=3     	Black=1      OK:         	White=9     	Black=9      Best:        	White=2     	Black=1      Brilliant:      	White=1     	---} 1-0

[Event "57th Biel Festival MTO 2024"]
[White "Bommini Mounika Akshaya"]
[Black "Petkidis,Anthony"]
[Site "Biel"]
[Round "3.19"]
[Annotator "TA"]
[Result "0-1"]
[Date "2024.07.17"]
[WhiteElo "2140"]
[BlackElo "2427"]
[PlyCount "82"]
[TimeControl "60"]

{[%evp 17,82,-20,0,0,6,9,12,-30,-26,-42,-28,-52,-45,-54,-26,-23,0,-19,-19,-48,-37,-45,-39,-17,-38,-46,-44,-49,0,-4,0,-47,0,-61,-58,-59,-54,-50,-39,-65,-57,-95,-94,-107,-103,-584,-58,-87,-46,-85,-89,-94,-62,-75,-74,-126,-101,-103,-105,-252,-242,-5489,-5493,-29974,-29975,-29964,-29964]} 1. d4 {[%emt 0:9:29]} Nf6 {[%emt 0:0:34]} 2. c4 {[%emt 0:0:15]} e6 {[%emt 0:0:13]} 3. Nc3 {[%emt 0:0:9]} Bb4 {[%emt 0:0:9]} 4. e3 {[%emt 0:0:33]} O-O {[%emt 0:0:20]} 5. Bd2 {[%emt 0:0:4]} d5 {[%emt 0:1:6]} 6. Nf3 {[%emt 0:0:11]} b6 {[%emt 0:1:7]} 7. cxd5 {[%emt 0:0:8]} exd5 {[%emt 0:0:8]} 8. Bd3 {[%emt 0:0:6]} Bd6 {[%emt 0:1:30]} 9. O-O {[%emt 0:0:19]} Bb7 {[%emt 0:0:30]} 10. Qb1 {[%emt 0:0:26]} Na6 {[%emt 0:4:14][%cal Bb8a6,Ba6c7,Bc7e6,Be6c5,Bc5e4][%mdl 32]} 11. a3 {[%emt 0:6:39]} c5 {[%emt 0:1:46]} 12. Ne5 {[%emt 0:13:41][%cal Ob2b4] The position is equal.} Nc7 {[%emt 0:14:0]} 13. f4 {[%emt 0:21:13]} Ne6 {[%emt 0:4:10]} 14. Nf3 {[%emt 0:4:22]} cxd4 {[%emt 0:4:59]} 15. Nxd4 {[%emt 0:1:6]} Nc5 {[%emt 0:2:36]} 16. Be2 {[%emt 0:9:25]} Nfe4 {[%emt 0:10:3]} 17. Nxe4 {[%emt 0:6:28]} Nxe4 {[%emt 0:0:17]} 18. Be1 {[%emt 0:0:33]} Bc5 {[%emt 0:4:50]} 19. Qd1 {[%emt 0:9:53]} Rc8 {[%emt 0:13:33]} 20. b4 {[%emt 0:4:12]} Be7 {[%emt 0:0:10]} 21. Bg4 {[%emt 0:1:39]} Rc4 {[%emt 0:13:39]} 22. Be2 {[%emt 0:1:29]} Rc8 {[%emt 0:1:22]} (22... Rc7 $5 )23. Bg4 $1 {[%emt 0:0:13]} Rc4 {[%emt 0:0:6]} 24. Be2 {[%emt 0:0:5] [#]} Bf6 {[%emt 0:2:47]} 25. Rc1 {[%emt 0:6:25] [#]} (25. Bxc4 $11 dxc4 26. Rc1 )Bxd4 $1 {[%emt 0:10:55]} 26. exd4 {[%emt 0:0:20]} Rxc1 {[%emt 0:0:42]} 27. Qxc1 {[%emt 0:0:4]} Qf6 {[%emt 0:0:20]} 28. Qb2 {[%emt 0:5:28]} Bc8 {[%emt 0:2:46]} 29. b5 {[%emt 0:2:33]} Bf5 {[%emt 0:3:41]} 30. Bb4 {[%emt 0:0:59]} Rc8 {[%emt 0:0:12][%cal Oc8c2] Hoping for ...Rc2!} 31. Re1 $2 {[%emt 0:6:33][%mdl 8192] [#]} (31. Bd1 $17 {is a better chance.} )Qh4 $2 {[%emt 0:5:40]} ({Black should play} 31... Rc2 $1 $19 {[%cal Rc2b2]} 32. Be7 (32. Qxc2 {gets mated.} Qxd4+ 33. Kh1 Nf2+ 34. Kg1 Nh3+ 35. Kh1 Qg1+ 36. Rxg1 Nf2# )Rxb2 33. Bxf6 Nxf6 (33... gxf6 $2 34. a4 $19 ))32. Rf1 $15 {[%emt 0:0:46]} Nf6 {[%emt 0:0:16] And now ...Rc2 would win. Black has more active pieces.} 33. Be1 {[%emt 0:0:40] [#]} Qh6 {[%emt 0:0:8] ...Rc2 would now be deadly.} 34. Qb3 {[%emt 0:0:24]} Be4 {[%emt 0:3:14]} 35. Bd2 {[%emt 0:0:26]} Qg6 $40 {[%emt 0:1:41][%csl Ge4][%cal Rg6g2][%mdl 128] Black wants a kill.} 36. Rf2 {[%emt 0:0:14]} (36. Qg3 $142 )Ng4 {[%emt 0:1:22]} 37. Bxg4 {[%emt 0:0:50]} Qxg4 {[%emt 0:0:2]} 38. Be3 {[%emt 0:0:31] White is weak on the light squares} (38. f5 $17 )h5 $19 {[%emt 0:1:7] Threatens to win with ...h4.} 39. Qb4 $2 {[%emt 0:0:35] [#]} (39. a4 )Bxg2 $1 {[%emt 0:2:30][%mdl 512]} 40. Rxg2 {[%emt 0:0:13]} (40. Qd2 Be4+ )Qd1+ {[%emt 0:0:1]} 41. Kf2 {[%emt 0:50:28]} Rc2+ {[%emt 0:50:2] Weighted Error Value: White=0.64/Black=0.33.  Loses game:     	White=1     	---        Missed win:     	---       	Black=1      Mistake:       	White=4     	Black=1      Inaccurate:     	White=6     	Black=4      OK:         	White=3     	Black=12     Best:        	White=2     	---        Strong:       	White=1     	---        Brilliant:      	---       	Black=1} 0-1